fUSD/lending_fUSD_20250816
["ID","MTS","AMOUNT","RATE_DAILY","PERIOD"]
[379476362,1755306632215,-331.68,0.000185,2]
[379476363,1755306632224,-538.83,0.000185,2]
[379476364,1755306632233,-164.69,0.000185,2]
[379476366,1755306632243,-360.24,0.000185,2]
[379476368,1755306632253,-360.24,0.000185,2]
[379476370,1755306632262,-165.84,0.000185,2]
[379476372,1755306632271,-538.83,0.000185,2]
[379476374,1755306632280,-165.88,0.000185,2]
[379476376,1755306632290,-360.24,0.000185,2]
[379476378,1755306632299,-233.0,0.00018541,2]
[379476380,1755306632309,-187.54286,0.0001855,2]
[379476382,1755306632318,-233.0,0.00018551,2]
[379476384,1755306632327,-200.0,0.00018585,2]
[379476386,1755306632337,-157.0,0.000186,3]
[379476413,1755306632571,-157.0,0.000186,3]
[379476415,1755306632589,-157.0,0.000186,3]
[379476417,1755306632599,-157.0,0.000186,3]
[379476419,1755306632609,-157.0,0.000186,3]
[379476421,1755306632619,-157.0,0.000186,3]
[379476423,1755306632629,-538.27,0.000186,2]
[379476424,1755306632639,-720.48,0.000186,2]
[379476425,1755306632648,-1077.66,0.000186,2]
[379476426,1755306632658,-360.24,0.000186,2]
[379476428,1755306632667,-1596.4,0.000186,2]
[379476430,1755306632677,-6088.0,0.00018651,2]
[379476432,1755306632686,-75.42117809,0.00018651,2]
[379476435,1755306632698,-4074.57882191,0.00018651,2]
[379476436,1755306632707,-1387.76841277,0.00018651,2]
[379476438,1755306632716,-4412.27570422,0.00018656,2]
[379476441,1755306632727,-4412.27570422,0.00018657,2]
[379476443,1755306632736,-335.19986595,0.00018657,2]
[379476445,1755306632747,-1714.36147465,0.0001866,2]
[379476447,1755306632756,-858.45957393,0.00018663,2]
[379476449,1755306632766,-4412.27570422,0.00018666,2]
[379476451,1755306632775,-21436.87679576,0.00018669,2]
[379476453,1755306632786,-4034.41240223,0.00018669,2]
[379476456,1755306632809,-3952.28090602,0.00018669,2]
[379476504,1755306642477,-558.99666842,0.00018651,2]
[379476505,1755306642533,-158.00333158,0.00018651,2]
[379476506,1755306642543,-21485.0,0.00018651,2]
[379476507,1755306642553,-23299.16044323,0.00018669,2]
[379476508,1755306642562,-4412.27570422,0.00018671,2]
[379476509,1755306642572,-1714.36147465,0.00018671,2]
[379476510,1755306642581,-33238.8283189,0.00018674,2]
[379476511,1755306642593,-19483.90222834,0.00018674,2]
[379476512,1755306642603,-858.45957393,0.00018677,2]
[379476513,1755306642613,-542.28404121,0.00018679,2]
[379476514,1755306642622,-335.19986595,0.00018693,2]
[379476515,1755306642632,-13236.82711259,0.00018697,2]
[379476516,1755306642641,-858.45957393,0.00018698,2]
[379476517,1755306642650,-1387.76841277,0.00018699,2]
[379476518,1755306642660,-165.88,0.000187,2]
[379476519,1755306642670,-13236.82711259,0.00018701,2]
[379476520,1755306642679,-542.2840412,0.00018704,2]
[379476521,1755306642688,-335.19986595,0.00018706,2]
[379476522,1755306642698,-1387.76841277,0.00018707,2]
[379476523,1755306642707,-858.45957393,0.00018708,2]
[379476524,1755306642717,-168.0,0.00018709,2]
[379476525,1755306642727,-1855.79274557,0.00018711,2]
[379476526,1755306642737,-150.0,0.00018713,2]
[379476527,1755306642746,-1714.36147465,0.00018716,2]
[379476528,1755306642756,-1855.79274557,0.00018718,2]
[379476529,1755306642765,-1855.79274557,0.00018719,2]
[379476530,1755306642774,-1855.79274557,0.00018719,2]
[379476531,1755306642783,-4412.27570422,0.00018719,2]
[379476532,1755306642793,-1000.0,0.0001872,2]
[379476533,1755306642804,-1000.0,0.0001872,2]
[379476534,1755306642816,-167.0,0.00018721,2]
[379476535,1755306642831,-150.0,0.00018721,2]
[379476536,1755306642844,-150.0,0.00018721,2]
[379476537,1755306642855,-150.0,0.00018721,2]
[379476538,1755306642867,-150.0,0.00018721,2]
[379476539,1755306642881,-150.0,0.00018721,2]
[379476540,1755306642894,-150.0,0.00018721,2]
[379476541,1755306642907,-150.0,0.00018721,2]
[379476542,1755306642921,-154.092,0.00018721,2]
[379476543,1755306642934,-3370.0,0.00018721,2]
[379476544,1755306642948,-1254.0,0.00018721,2]
[379476545,1755306642960,-1656.0,0.00018721,2]
[379476547,1755306642971,-599.0,0.00018721,2]
[379476549,1755306642982,-566.0,0.00018721,2]
[379476550,1755306642995,-1172.0,0.00018721,2]
[379476551,1755306643008,-894.0,0.00018721,2]
[379476552,1755306643022,-11617.1300574,0.00018721,2]
[379476554,1755306643107,-1619.69705519,0.00018721,2]
[379476555,1755306643121,-1000.0,0.00018722,2]
[379476556,1755306643134,-12.99317712,0.00018722,2]
[379476557,1755306643181,-845.46639681,0.00018722,2]
[379476558,1755306643193,-1000.0,0.00018724,2]
[379476559,1755306643206,-3019.67377959,0.00018725,2]
[379476575,1755306647482,-2647.91012615,0.00018725,2]
[379476576,1755306647508,-7569.24320685,0.00018725,2]
[379476577,1755306647518,-150.0,0.00018728,2]
[379476578,1755306647528,-542.2840412,0.00018728,2]
[379476579,1755306647538,-775.90374428,0.00018728,2]
[379476580,1755306647630,-399.58788103,0.00018728,2]
[379476581,1755306670154,100762.621542,0.00028,30]
[379476585,1755306697859,-274.45,0.00017786,2]
[379476586,1755306705611,-628.06641896,0.00017786,2]
[379476587,1755306857384,1000.0,0.00028,30]
[379476590,1755306873101,373.1,0.00013699,2]
[379476591,1755306954613,216.0,0.00028,30]
[379476594,1755307082822,181.75,0.00028,30]
[379476595,1755307153203,161.56,0.00028,30]
[379476596,1755307306398,-15423.12629391,0.00017763,2]
[379476597,1755307313443,-22118.79676833,0.00017763,2]
[379476598,1755307320704,-1000.0,0.00017763,2]
[379476599,1755307328314,-1000.0,0.00017763,2]
[379476600,1755307335365,-197.06,0.00017763,2]
[379476601,1755307376821,4752.7,0.00028,30]
[379476603,1755307482941,-2626.89264004,0.00017761,2]
[379476604,1755307489382,-1000.0,0.00017761,2]
[379476605,1755307496574,-334.26,0.00017761,2]
[379476606,1755307503517,-331.34,0.00017761,2]
[379476607,1755307512047,-290.7033861,0.00017761,2]
[379476608,1755307553574,170.0,0.00017752,7]
[379476610,1755307635978,-192.73,0.00017752,2]
[379476623,1755307675649,-954.68933338,0.00017742,2]
[379476624,1755307701577,204.52,0.00024685,30]
[379476641,1755307831826,-45.31066662,0.00017742,2]
[379476642,1755307831835,-58.85,0.00017752,2]
[379476643,1755307831845,-5.38397386,0.00017761,2]
[379476644,1755307831855,-122.85693776,0.00017763,2]
[379476645,1755307831864,-1200.0,0.00017999,2]
[379476646,1755307831873,-178.25731371,0.00017999,2]
[379476647,1755307831883,-985.28625537,0.00018,2]
[379476648,1755307831894,-894.31286743,0.00018,2]
[379476649,1755307831905,-1098.32875187,0.00018,2]
[379476658,1755307832072,-5583.46212533,0.00018,2]
[379476660,1755307832082,-168.0,0.00018017,2]
[379476683,1755307832431,-168.0,0.0001814,2]
[379476685,1755307832441,-168.0,0.00018334,2]
[379476687,1755307832450,-633.0,0.00018377,2]
[379476689,1755307832459,-168.0,0.00018455,2]
[379476691,1755307832471,-2809.70665441,0.00018489,2]
[379476693,1755307832480,-277.35679052,0.00018489,2]
[379476695,1755307832489,-165.88,0.000185,2]
[379476697,1755307832498,-730.59,0.000185,2]
[379476699,1755307832507,-449.44,0.000185,2]
[379476701,1755307832516,-165.88,0.000185,2]
[379476703,1755307832525,-538.83,0.000185,2]
[379476705,1755307832534,-336.67,0.000185,2]
[379476707,1755307832543,-165.88,0.000185,2]
[379476709,1755307832552,-797.99,0.000185,2]
[379476711,1755307832561,-165.88,0.000185,2]
[379476713,1755307832570,-165.88,0.000185,2]
[379476715,1755307832580,-798.2,0.000185,2]
[379476717,1755307832589,-598.31,0.000185,2]
[379476719,1755307832598,-633.0,0.00018523,2]
[379476721,1755307832607,-27.52793155,0.0001854,2]
[379476739,1755307837821,-128.75778845,0.0001854,2]
[379476740,1755307837831,-200.0,0.00018584,2]
[379476741,1755307837840,-173.45,0.00018595,2]
[379476742,1755307837849,-108.88614104,0.0001865,2]
[379476772,1755307839373,-47.39958896,0.0001865,2]
[379476773,1755307839382,-639.06151544,0.00018659,2]
[379476774,1755307839392,-633.0,0.00018677,2]
[379476775,1755307839407,-639.06151544,0.00018692,2]
[379476776,1755307839427,-160.0,0.00018713,2]
[379476777,1755307839446,-1000.0,0.00018722,2]
[379476778,1755307839458,-639.06151544,0.00018724,2]
[379476779,1755307839467,-1297.0,0.00018724,2]
[379476780,1755307839477,-599.0,0.00018724,2]
[379476781,1755307839486,-566.0,0.00018724,2]
[379476782,1755307839496,-1656.0,0.00018724,2]
[379476783,1755307839506,-894.0,0.00018724,2]
[379476784,1755307839517,-1172.0,0.00018724,2]
[379476785,1755307839527,-3371.0,0.00018724,2]
[379476786,1755307839539,-1255.0,0.00018724,2]
[379476787,1755307839548,-4150.0,0.00018724,2]
[379476788,1755307839558,-1000.0,0.00018725,2]
[379476789,1755307839567,-538.86984934,0.00018728,2]
[379476790,1755307839577,-165.0589823,0.00018729,2]
[379476791,1755307839586,-862.23648,0.00018729,2]
[379476792,1755307839596,-1301.5342685,0.00018729,2]
[379476793,1755307839606,-151.0,0.00018734,2]
[379476794,1755307839616,-151.0,0.00018734,2]
[379476795,1755307839625,-151.0,0.00018734,2]
[379476796,1755307839636,-378.07166022,0.00018735,2]
[379476799,1755307840153,-211.92094487,0.00018722,2]
[379476801,1755307840165,-431.12897056,0.00018735,2]
[379476803,1755307840175,-1714.36147465,0.00018735,2]
[379476804,1755307840185,-6651.52492708,0.00018736,2]
[379476805,1755307840195,-1855.79274557,0.00018736,2]
[379476806,1755307840204,-1000.0,0.00018736,2]
[379476807,1755307840214,-1000.0,0.00018737,2]
[379476808,1755307840224,-159.1797956,0.00018737,2]
[379476809,1755307840234,-1387.76841277,0.00018737,2]
[379476811,1755307840243,-9170.3343989,0.00018737,2]
[379476813,1755307840267,-43552.39614834,0.00018737,2]
[379476814,1755307840277,-335.19986595,0.00018738,2]
[379476815,1755307840286,-93421.00005385,0.00018739,2]
[379476816,1755307840296,-13236.82711259,0.00018739,2]
[379476817,1755307840305,-1000.0,0.00018739,2]
[379476818,1755307840315,-335.19986595,0.00018739,2]
[379476819,1755307840325,-93421.00005385,0.0001874,2]
[379476820,1755307840334,-52722.73054724,0.00018743,2]
[379476821,1755307840344,-858.45957393,0.00018745,2]
[379476822,1755307840356,-1855.79274557,0.00018746,2]
[379476823,1755307840372,-14449.42592183,0.00018748,2]
[379476824,1755307840429,-21872.92918644,0.00018748,2]
[379476825,1755307840505,-2388.39555402,0.00018748,2]
[379476826,1755307840516,-330.8893703,0.00018748,2]
[379476827,1755307840538,-4535.05514265,0.00018724,2]
[379476832,1755307842852,-1553.94485735,0.00018724,2]
[379476833,1755307842862,-4573.7994267,0.00018748,2]
[379476834,1755307842874,-392.29490377,0.00018748,2]
[379476835,1755307845811,-250.46476386,0.000185,2]
[379476841,1755308247263,370.42,0.00013699,2]
[379476842,1755308258441,-152.53606354,0.00017678,2]
[379476843,1755308372217,853.0,0.00028,30]
[379476844,1755308409014,285.0,0.00028,30]
[379476845,1755308428976,501.0,0.00028,30]
[379476846,1755308468636,152.0,0.00027889,30]
[379476847,1755308500316,170.0,0.00017637,7]
[379476848,1755308507024,285.0,0.00028,30]
[379476849,1755308553684,-228.85,0.00017637,2]
[379476850,1755308561233,2000.0,0.00028,30]
[379476851,1755308573508,284.0,0.00028,30]
[379476852,1755308574181,3000.0,0.00028,30]
[379476853,1755308585476,187.47,0.00024685,30]
[379476854,1755308608705,328.13,0.000245,120]
[379476855,1755308623145,284.0,0.00028,30]
[379476858,1755308666076,160.77344,0.00028,30]
[379476859,1755308684266,285.0,0.00028,30]
[379476860,1755308684834,-806.27,0.00017623,2]
[379476861,1755308701977,-186.7479705,0.00017623,2]
[379476862,1755308706765,150.0,0.00017088,2]
[379476863,1755308706945,162.33819195,0.00017088,2]
[379476864,1755308748444,852.0,0.00028,30]
[379476865,1755308778289,493.08,0.00028,30]
[379476866,1755308800310,569.0,0.00028,30]
[379476872,1755308872815,2516.1126768,0.00028,30]
[379476875,1755308896039,284.0,0.00028,30]
[379476876,1755308903725,206.0,0.00028,120]
[379476877,1755308933053,2477.16000008,0.00028,30]
[379476878,1755308939498,10000.0,0.00028,30]
[379476887,1755308950924,10000.0,0.00028,30]
[379476888,1755308951415,854.0,0.00028,30]
[379476889,1755308963571,619.28,0.00028,30]
[379476890,1755308967553,30000.0,0.00028,30]
[379476891,1755308993812,9996.656655,0.00028,30]
[379476895,1755309031890,-6.9820295,0.00017623,2]
[379476896,1755309031900,-22.73,0.00017637,2]
[379476897,1755309031909,-2.16393646,0.00017678,2]
[379476898,1755309031918,-200.0,0.000179,6]
[379476899,1755309031928,-673.64897127,0.00018,2]
[379476900,1755309031949,-1879.18795851,0.00018,2]
[379476901,1755309031959,-500.0,0.00018,6]
[379476902,1755309031968,-800.0,0.000181,6]
[379476903,1755309031978,-1100.0,0.000182,6]
[379476904,1755309031988,-500.0,0.00018247,2]
[379476905,1755309031997,-487.68400581,0.00018265,2]
[379476906,1755309032007,-1200.0,0.00018299,2]
[379476907,1755309032016,-300.0,0.00018299,2]
[379476908,1755309032025,-538.83,0.000183,2]
[379476909,1755309032034,-1077.66,0.000183,2]
[379476910,1755309032044,-538.83,0.000183,2]
[379476911,1755309032053,-538.83,0.000183,2]
[379476912,1755309032062,-1400.0,0.000183,6]
[379476913,1755309032071,-538.83,0.000184,2]
[379476914,1755309032081,-200.0,0.000184,6]
[379476915,1755309032091,-277.35679052,0.00018439,2]
[379476916,1755309032100,-637.86837694,0.00018439,2]
[379476917,1755309032109,-1825.89979258,0.0001845,2]
[379476918,1755309032155,-447.9,0.0001845,2]
[379476919,1755309032204,-519.2937869,0.0001845,2]
[379477158,1755309037880,-618.18886431,0.0001845,2]
[379477159,1755309038138,-3360.58755621,0.0001845,2]
[379477160,1755309038148,-1074.60234109,0.0001845,2]
[379477161,1755309038158,-200.0,0.000185,6]
[379477162,1755309038167,-168.0,0.00018596,2]
[379477163,1755309038176,-200.0,0.00018598,2]
[379477164,1755309038186,-167.06686006,0.00018599,2]
[379477165,1755309038196,-2500.0,0.00018599,2]
[379477166,1755309038206,-11797.2758,0.00018599,2]
[379477167,1755309038216,-1000.0,0.00018599,2]
[379477168,1755309038226,-571.9321971,0.000186,2]
[379477169,1755309038237,-1490.55849726,0.000186,2]
[379477170,1755309038246,-192.16082785,0.000186,2]
[379477171,1755309038256,-200.0,0.000186,6]
[379477172,1755309038265,-173.45,0.00018613,2]
[379477173,1755309038275,-571.93219707,0.00018632,2]
[379477174,1755309038284,-1490.55849718,0.00018632,2]
[379477175,1755309038294,-1242.26559919,0.0001865,2]
[379477176,1755309038303,-1242.26559919,0.0001865,2]
[379477209,1755309038671,-3003.26408035,0.00018651,2]
[379477210,1755309038784,-2161.99443148,0.00018651,2]
[379477211,1755309038794,-216.62398632,0.00018652,2]
[379477212,1755309038804,-223.79296731,0.00018653,2]
[379477213,1755309038814,-597.80034342,0.00018654,2]
[379477214,1755309038824,-518.52188471,0.00018655,2]
[379477215,1755309038833,-300.54164449,0.00018655,2]
[379477216,1755309038843,-518.52188471,0.00018656,2]
[379477217,1755309038852,-654.5665024,0.00018656,2]
[379477218,1755309038861,-211.73122843,0.00018656,2]
[379477219,1755309038871,-300.54164449,0.00018656,2]
[379477220,1755309038881,-3003.26408035,0.00018656,2]
[379477221,1755309038890,-3846.80426958,0.00018657,2]
[379477222,1755309038900,-470.13454332,0.00018657,2]
[379477223,1755309038909,-300.54164449,0.00018659,2]
[379477224,1755309038919,-654.5665024,0.00018659,2]
[379477225,1755309038928,-170239.53355707,0.00018659,2]
[379477226,1755309038938,-518.52188471,0.0001866,2]
[379477227,1755309038947,-597.80034342,0.0001866,2]
[379477228,1755309038957,-3003.26408035,0.0001866,2]
[379477229,1755309038967,-518.52188471,0.00018661,2]
[379477230,1755309038977,-160.0,0.00018661,2]
[379477231,1755309038986,-500.0,0.00018661,2]
[379477232,1755309038996,-500.0,0.00018661,2]
[379477233,1755309039006,-500.0,0.00018661,2]
[379477234,1755309039016,-500.0,0.00018661,2]
[379477235,1755309039025,-500.0,0.00018661,2]
[379477236,1755309039035,-500.0,0.00018661,2]
[379477237,1755309039044,-500.0,0.00018661,2]
[379477238,1755309039054,-151.0,0.00018661,2]
[379477239,1755309039064,-500.0,0.00018661,2]
[379477240,1755309039074,-500.0,0.00018661,2]
[379477241,1755309039084,-151.0,0.00018661,2]
[379477242,1755309039094,-500.0,0.00018661,2]
[379477243,1755309039104,-151.0,0.00018661,2]
[379477244,1755309039116,-500.0,0.00018661,2]
[379477245,1755309039127,-500.0,0.00018661,2]
[379477246,1755309039136,-151.0,0.00018661,2]
[379477247,1755309039146,-500.0,0.00018661,2]
[379477248,1755309039156,-562.67257414,0.00018661,2]
[379477249,1755309039166,-500.0,0.00018661,2]
[379477250,1755309039175,-298.78759814,0.00018661,2]
[379477251,1755309039185,-500.0,0.00018661,2]
[379477252,1755309039195,-500.0,0.00018661,2]
[379477253,1755309039205,-500.0,0.00018661,2]
[379477254,1755309039215,-500.0,0.00018661,2]
[379477255,1755309039224,-570.25134665,0.00018661,2]
[379477256,1755309039233,-500.0,0.00018661,2]
[379477257,1755309039242,-500.0,0.00018661,2]
[379477258,1755309039253,-500.0,0.00018661,2]
[379477259,1755309039263,-500.0,0.00018661,2]
[379477260,1755309039272,-500.0,0.00018661,2]
[379477261,1755309039282,-500.0,0.00018661,2]
[379477262,1755309039291,-500.0,0.00018661,2]
[379477263,1755309039300,-250.0,0.00018661,2]
[379477264,1755309039310,-500.0,0.00018661,2]
[379477265,1755309039320,-250.0,0.00018661,2]
[379477266,1755309039330,-595.51096905,0.00018661,2]
[379477267,1755309039340,-250.0,0.00018661,2]
[379477268,1755309039349,-250.0,0.00018661,2]
[379477269,1755309039359,-250.0,0.00018661,2]
[379477270,1755309039369,-250.0,0.00018661,2]
[379477271,1755309039378,-250.0,0.00018661,2]
[379477272,1755309039388,-250.0,0.00018661,2]
[379477273,1755309039398,-263.20365494,0.00018661,2]
[379477274,1755309039407,-216.62398632,0.00018663,2]
[379477275,1755309039417,-4412.27570422,0.00018664,2]
[379477276,1755309039426,-571.93219707,0.00018664,2]
[379477277,1755309039435,-1490.55849718,0.00018664,2]
[379477278,1755309039445,-470.13454332,0.00018664,2]
[379477279,1755309039454,-3846.80426958,0.00018666,2]
[379477280,1755309039464,-3003.26408035,0.00018667,2]
[379477281,1755309039474,-2161.99443148,0.00018667,2]
[379477282,1755309039484,-211.73122843,0.00018668,2]
[379477283,1755309039493,-612.83204471,0.00018669,2]
[379477284,1755309039502,-211.92094487,0.00018671,2]
[379477285,1755309039513,-500.0,0.00018673,2]
[379477286,1755309039522,-500.0,0.00018673,2]
[379477287,1755309039532,-500.0,0.00018673,2]
[379477288,1755309039541,-500.0,0.00018673,2]
[379477289,1755309039551,-500.0,0.00018673,2]
[379477290,1755309039560,-500.0,0.00018673,2]
[379477291,1755309039569,-500.0,0.00018673,2]
[379477292,1755309039578,-500.0,0.00018673,2]
[379477293,1755309039588,-500.0,0.00018673,2]
[379477294,1755309039597,-500.0,0.00018673,2]
[379477295,1755309039607,-500.0,0.00018673,2]
[379477296,1755309039617,-501.00741022,0.00018673,2]
[379477297,1755309039627,-504.50585883,0.00018673,2]
[379477298,1755309039636,-500.0,0.00018673,2]
[379477299,1755309039645,-500.0,0.00018673,2]
[379477300,1755309039655,-500.0,0.00018673,2]
[379477301,1755309039664,-500.0,0.00018673,2]
[379477302,1755309039673,-500.0,0.00018673,2]
[379477303,1755309039683,-500.0,0.00018673,2]
[379477304,1755309039692,-500.0,0.00018673,2]
[379477305,1755309039701,-500.0,0.00018673,2]
[379477306,1755309039711,-500.0,0.00018673,2]
[379477307,1755309039721,-500.0,0.00018673,2]
[379477308,1755309039732,-500.0,0.00018673,2]
[379477310,1755309039741,-300.54164449,0.00018673,2]
[379477311,1755309039751,-223.79296731,0.00018676,2]
[379477312,1755309039760,-518.52188471,0.00018677,2]
[379477313,1755309039770,-3846.80426958,0.00018677,2]
[379477314,1755309039779,-597.80034342,0.00018678,2]
[379477315,1755309039789,-1242.26559919,0.00018681,2]
[379477316,1755309039799,-7514.72774755,0.00018682,2]
[379477317,1755309039808,-170239.53355707,0.00018682,2]
[379477318,1755309039818,-654.5665024,0.00018683,2]
[379477319,1755309039828,-853.14389371,0.00018683,2]
[379477320,1755309039838,-4412.27570422,0.00018685,2]
[379477321,1755309039847,-853.14389371,0.00018686,2]
[379477322,1755309039857,-7514.72774755,0.00018686,2]
[379477323,1755309039867,-500.0,0.00018688,2]
[379477324,1755309039877,-1722.0,0.00018688,2]
[379477325,1755309039887,-300.0,0.00018688,2]
[379477326,1755309039896,-150.0,0.00018688,2]
[379477327,1755309039906,-190.37,0.0001869,2]
[379477328,1755309039915,-1296.63,0.0001869,2]
[379477329,1755309039925,-1296.63,0.0001869,2]
[379477330,1755309039935,-254.00335884,0.0001869,2]
[379477331,1755309039944,-254.00335884,0.0001869,2]
[379477332,1755309039953,-4412.27570422,0.00018693,2]
[379477333,1755309039963,-3003.26408035,0.00018693,2]
[379477334,1755309039973,-1242.26559919,0.00018693,2]
[379477335,1755309039982,-7514.72774755,0.00018695,2]
[379477336,1755309039992,-3003.26408035,0.00018695,2]
[379477337,1755309040001,-571.93219707,0.00018696,2]
[379477338,1755309040011,-1490.55849718,0.00018696,2]
[379477339,1755309040020,-211.73122843,0.00018696,2]
[379477340,1755309040030,-300.54164449,0.00018697,2]
[379477341,1755309040039,-654.5665024,0.00018698,2]
[379477342,1755309040049,-666.0,0.00018698,2]
[379477343,1755309040058,-300.0,0.00018699,2]
[379477344,1755309040067,-670.84804146,0.00018699,2]
[379477345,1755309040077,-300.0,0.00018699,2]
[379477346,1755309040086,-666.0,0.00018699,2]
[379477347,1755309040095,-666.0,0.00018699,2]
[379477348,1755309040105,-308.52722433,0.00018699,2]
[379477349,1755309040114,-300.0,0.00018699,2]
[379477350,1755309040124,-1000.0,0.00018699,2]
[379477351,1755309040133,-300.0,0.00018699,2]
[379477352,1755309040143,-1000.0,0.00018699,2]
[379477353,1755309040152,-666.0,0.00018699,2]
[379477354,1755309040161,-607.68,0.00018699,2]
[379477355,1755309040170,-1229.0,0.00018699,2]
[379477356,1755309040180,-36994.25172115,0.00018699,2]
[379477357,1755309040189,-211.73122843,0.000187,2]
[379477358,1755309040198,-2998231.72482828,0.000187,2]
[379477359,1755309040207,-897799.35,0.000187,2]
[379477360,1755309040217,-547.74,0.000187,2]
[379477361,1755309040227,-150.0,0.000187,2]
[379477363,1755309040237,-724.93,0.000187,2]
[379477365,1755309040247,-300.7,0.000187,2]
[379477367,1755309040256,-245.84,0.000187,2]
[379477369,1755309040266,-1595.2,0.000187,2]
[379477372,1755309040276,-200.0,0.000187,6]
[379477374,1755309040285,-518.52188471,0.00018701,2]
[379477376,1755309040296,-168.0,0.00018701,2]
[379477378,1755309040305,-518.52188471,0.00018701,2]
[379477380,1755309040315,-518.52188471,0.00018702,2]
[379477382,1755309040324,-583.60236442,0.00018704,2]
[379477384,1755309040334,-654.5665024,0.00018704,2]
[379477386,1755309040343,-583.60236442,0.00018705,2]
[379477388,1755309040352,-223.79296731,0.00018706,2]
[379477390,1755309040362,-583.60236442,0.00018707,2]
[379477392,1755309040371,-7514.72774755,0.00018708,2]
[379477394,1755309040380,-216.62398632,0.00018708,2]
[379477396,1755309040390,-3003.26408035,0.00018709,2]
[379477398,1755309040399,-216.62398632,0.00018709,2]
[379477400,1755309040409,-7514.72774755,0.00018711,2]
[379477402,1755309040418,-612.83204471,0.00018711,2]
[379477404,1755309040428,-2161.99443148,0.00018713,2]
[379477406,1755309040437,-1243.99639617,0.00018716,2]
[379477408,1755309040447,-612.83204471,0.00018717,2]
[379477410,1755309040455,-223.79296731,0.00018718,2]
[379477412,1755309040465,-853.14389371,0.00018719,2]
[379477414,1755309040476,-1243.99639617,0.00018719,2]
[379477416,1755309040486,-1058.69181011,0.0001872,2]
[379477418,1755309040496,-1242.26559919,0.00018721,2]
[379477420,1755309040506,-1242.26559919,0.00018721,2]
[379477422,1755309040516,-3003.26408035,0.00018721,2]
[379477424,1755309040526,-211.73122843,0.00018722,2]
[379477426,1755309040536,-518.52188471,0.00018722,2]
[379477427,1755309040545,-1243.99639617,0.00018722,2]
[379477428,1755309040555,-1000.0,0.00018722,2]
[379477429,1755309040566,-211.73122843,0.00018722,2]
[379477430,1755309040581,-216.62398632,0.00018723,2]
[379477431,1755309040591,-1000.0,0.00018723,2]
[379477432,1755309040601,-612.83204471,0.00018725,2]
[379477433,1755309040611,-1243.99639617,0.00018725,2]
[379477434,1755309040620,-2161.99443148,0.00018725,2]
[379477435,1755309040630,-1000.0,0.00018726,2]
[379477437,1755309040640,-150.0,0.00018727,2]
[379477439,1755309040650,-654.5665024,0.00018727,2]
[379477442,1755309040660,-853.14389371,0.00018727,2]
[379477444,1755309040671,-1255.0,0.00018728,2]
[379477446,1755309040681,-3371.0,0.00018728,2]
[379477448,1755309040691,-903.0,0.00018728,2]
[379477450,1755309040701,-1540.77878266,0.00018728,2]
[379477521,1755309042642,-366.73450425,0.00018728,2]
[379477522,1755309042682,-121.48671309,0.00018728,2]
[379477523,1755309042692,-894.0,0.00018728,2]
[379477524,1755309042703,-1172.0,0.00018728,2]
[379477525,1755309042713,-599.747,0.00018728,2]
[379477526,1755309042722,-634.53007179,0.00018728,2]
[379477527,1755309042756,-662.46992821,0.00018728,2]
[379477528,1755309042766,-1656.0,0.00018728,2]
[379477529,1755309042777,-921.23372125,0.00018728,2]
[379477531,1755309079914,284.0,0.00028,30]
[379477533,1755309154924,351.89,0.00013699,2]
[379477534,1755309195068,743.0024297,0.00028,30]
[379477535,1755309201812,-1002.0162443,0.00017815,2]
[379477536,1755309210063,-432.97,0.00017815,2]